fUSD/lending_fUSD_20250716
["ID","MTS","AMOUNT","RATE_DAILY","PERIOD"]
[372508960,1752664235015,-488.26,0.00021917,2]
[372508961,1752664235025,-460.0,0.00021917,2]
[372508962,1752664235035,-502.15208096,0.00021917,2]
[372508963,1752664235046,-460.0,0.00021917,2]
[372508964,1752664235057,-462.29873041,0.00021917,2]
[372508965,1752664235068,-460.0,0.00021917,2]
[372508966,1752664235079,-460.0,0.00021917,2]
[372508967,1752664235091,-460.0,0.00021917,2]
[372508968,1752664235101,-481.55,0.00021917,2]
[372508969,1752664235111,-460.0,0.00021917,2]
[372508970,1752664235120,-478.71,0.00021917,2]
[372508971,1752664235130,-460.0,0.00021917,2]
[372508972,1752664235140,-460.0,0.00021917,2]
[372508973,1752664235150,-460.0,0.00021917,2]
[372508974,1752664235160,-460.0,0.00021917,2]
[372508975,1752664235171,-460.0,0.00021917,2]
[372508976,1752664235182,-573.75,0.00021917,2]
[372508977,1752664235192,-460.0,0.00021917,2]
[372508978,1752664235203,-460.0,0.00021917,2]
[372508979,1752664235213,-460.0,0.00021917,2]
[372508980,1752664235223,-460.0,0.00021917,2]
[372508981,1752664235233,-500.0,0.00021917,2]
[372508982,1752664235243,-460.0,0.00021917,2]
[372508983,1752664235253,-460.0,0.00021917,2]
[372508984,1752664235264,-500.0,0.00021917,2]
[372508985,1752664235274,-460.0,0.00021917,2]
[372508986,1752664235284,-460.0,0.00021917,2]
[372508987,1752664235294,-460.0,0.00021917,2]
[372508988,1752664235304,-460.0,0.00021917,2]
[372508989,1752664235314,-460.0,0.00021917,2]
[372508990,1752664235325,-460.0,0.00021917,2]
[372508991,1752664235335,-460.0,0.00021917,2]
[372508992,1752664235344,-460.0,0.00021917,2]
[372508993,1752664235354,-460.0,0.00021917,2]
[372508994,1752664235364,-494.60280002,0.00021917,2]
[372508995,1752664235374,-460.0,0.00021917,2]
[372508996,1752664235384,-600.85,0.00021917,2]
[372508997,1752664235394,-460.0,0.00021917,2]
[372508998,1752664235403,-460.0,0.00021917,2]
[372508999,1752664235413,-460.0,0.00021917,2]
[372509000,1752664235423,-460.0,0.00021917,2]
[372509001,1752664235433,-460.0,0.00021917,2]
[372509002,1752664235442,-460.0,0.00021917,2]
[372509003,1752664235452,-492.96,0.00021917,2]
[372509004,1752664235461,-460.0,0.00021917,2]
[372509005,1752664235471,-576.45,0.00021917,2]
[372509006,1752664235480,-460.0,0.00021917,2]
[372509007,1752664235490,-625.73,0.00021917,2]
[372509008,1752664235500,-460.0,0.00021917,2]
[372509009,1752664235510,-496.77,0.00021917,2]
[372509010,1752664235520,-496.32,0.00021917,2]
[372509011,1752664235531,-460.0,0.00021917,2]
[372509012,1752664235541,-460.0,0.00021917,2]
[372509013,1752664235554,-460.0,0.00021917,2]
[372509014,1752664235564,-1149.93,0.00021917,2]
[372509015,1752664235574,-460.0,0.00021917,2]
[372509016,1752664235584,-500.0,0.00021917,2]
[372509017,1752664235594,-460.0,0.00021917,2]
[372509018,1752664235604,-460.0,0.00021917,2]
[372509019,1752664235613,-460.0,0.00021917,2]
[372509020,1752664235624,-460.0,0.00021917,2]
[372509021,1752664235634,-460.0,0.00021917,2]
[372509022,1752664235644,-460.0,0.00021917,2]
[372509023,1752664235653,-982.18,0.00021917,2]
[372509024,1752664235663,-460.0,0.00021917,2]
[372509025,1752664235673,-2850.09,0.00021917,2]
[372509026,1752664235683,-527.31071435,0.00021917,2]
[372509027,1752664235693,-460.0,0.00021917,2]
[372509028,1752664235702,-140.44605685,0.00021917,2]
[372509029,1752664236296,-297.220275,0.00021917,2]
[372509080,1752664238511,-484.20831733,0.00021627,2]
[372509206,1752664239863,-15.79168267,0.00021627,2]
[372509208,1752664239873,-500.0,0.00021627,2]
[372509210,1752664239884,-500.0,0.00021627,2]
[372509212,1752664239893,-500.0,0.00021627,2]
[372509214,1752664239903,-1005.45859793,0.00021627,2]
[372509216,1752664239913,-500.0,0.00021627,2]
[372509218,1752664239924,-639.25555517,0.00021627,2]
[372509220,1752664239935,-1005.45859793,0.00021627,2]
[372509222,1752664239948,-117.95629304,0.00021627,2]
[372509225,1752664239970,-303.05034171,0.00021627,2]
[372509525,1752664243087,-78.99336525,0.00021627,2]
[372509527,1752664243098,-306.96733569,0.00021627,2]
[372509529,1752664243107,-449.12672069,0.00021627,2]
[372509530,1752664243117,-517.00352074,0.00021627,2]
[372509532,1752664243127,-1005.45859793,0.00021627,2]
[372509534,1752664243138,-1005.45859793,0.00021627,2]
[372509536,1752664243148,-1005.45859793,0.00021627,2]
[372509538,1752664243157,-1005.45859793,0.00021627,2]
[372509540,1752664243167,-1005.45859793,0.00021627,2]
[372509541,1752664243177,-1005.45859793,0.00021627,2]
[372509543,1752664243187,-1005.45859793,0.00021627,2]
[372509545,1752664243197,-1005.45859793,0.00021627,2]
[372509547,1752664243206,-1005.45859793,0.00021627,2]
[372509549,1752664243215,-1005.45859793,0.00021627,2]
[372509551,1752664243225,-1005.45859793,0.00021627,2]
[372509553,1752664243235,-1005.45859793,0.00021627,2]
[372509589,1752664243611,-1005.45859793,0.00021627,2]
[372509592,1752664243644,-1005.45859793,0.00021627,2]
[372509594,1752664243655,-1005.45859793,0.00021627,2]
[372509596,1752664243665,-1005.45859793,0.00021627,2]
[372509598,1752664243676,-1005.45859793,0.00021627,2]
[372509600,1752664243686,-1005.45859793,0.00021627,2]
[372509602,1752664243697,-1005.45859793,0.00021627,2]
[372509604,1752664243706,-1005.45859793,0.00021627,2]
[372509606,1752664243716,-1005.45859793,0.00021627,2]
[372509608,1752664243726,-1005.45859793,0.00021627,2]
[372509610,1752664243737,-1005.45859793,0.00021627,2]
[372509612,1752664243747,-1005.45859793,0.00021627,2]
[372509614,1752664243759,-1005.45859793,0.00021627,2]
[372509616,1752664243769,-1005.45859793,0.00021627,2]
[372509617,1752664243779,-1005.45859793,0.00021627,2]
[372509619,1752664243789,-1005.45859793,0.00021627,2]
[372509621,1752664243799,-1005.45859793,0.00021627,2]
[372509623,1752664243808,-1005.45859793,0.00021627,2]
[372509625,1752664243818,-1005.45859793,0.00021627,2]
[372509627,1752664243827,-1005.45859793,0.00021627,2]
[372509629,1752664243837,-1005.45859793,0.00021627,2]
[372509631,1752664243847,-1005.45859793,0.00021627,2]
[372509633,1752664243856,-1005.45859793,0.00021627,2]
[372509635,1752664243866,-1005.45859793,0.00021627,2]
[372509637,1752664243876,-1005.45859793,0.00021627,2]
[372509639,1752664243886,-1005.45859793,0.00021627,2]
[372509640,1752664243896,-1005.45859793,0.00021627,2]
[372509642,1752664243906,-1005.45859793,0.00021627,2]
[372509644,1752664243916,-1005.45859793,0.00021627,2]
[372509645,1752664243926,-1005.45859793,0.00021627,2]
[372509646,1752664243936,-1005.45859793,0.00021627,2]
[372509647,1752664243945,-1005.45859793,0.00021627,2]
[372509648,1752664243955,-1005.45859793,0.00021627,2]
[372509649,1752664243965,-1005.45859793,0.00021627,2]
[372509650,1752664243974,-1005.45859793,0.00021627,2]
[372509651,1752664243984,-1005.45859793,0.00021627,2]
[372509652,1752664243993,-1005.45859793,0.00021627,2]
[372509653,1752664244003,-1005.45859793,0.00021627,2]
[372509654,1752664244015,-1005.45859793,0.00021627,2]
[372509655,1752664244024,-1005.45859793,0.00021627,2]
[372509656,1752664244034,-22.33366815,0.00021917,2]
[372509658,1752664244046,-961.96,0.00021917,2]
[372509659,1752664244057,-460.0,0.00021917,2]
[372509661,1752664244066,-460.0,0.00021917,2]
[372509663,1752664244076,-573.16,0.00021917,2]
[372509665,1752664244086,-1162.45,0.00021917,2]
[372509667,1752664244096,-1360.06,0.00021917,2]
[372509669,1752664244106,-460.0,0.00021917,2]
[372509672,1752664244116,-460.0,0.00021917,2]
[372509674,1752664244126,-460.0,0.00021917,2]
[372509676,1752664244137,-1090.85,0.00021917,2]
[372509678,1752664244147,-1154.09,0.00021917,2]
[372509680,1752664244157,-460.0,0.00021917,2]
[372509682,1752664244166,-673.39,0.00021917,2]
[372509684,1752664244176,-592.91,0.00021917,2]
[372509686,1752664244186,-460.0,0.00021917,2]
[372509688,1752664244196,-1144.0,0.00021917,2]
[372509690,1752664244206,-460.0,0.00021917,2]
[372509692,1752664244216,-869.91,0.00021917,2]
[372509694,1752664244226,-460.0,0.00021917,2]
[372509696,1752664244237,-460.0,0.00021917,2]
[372509698,1752664244246,-500.0,0.00021917,2]
[372509700,1752664244256,-1254.25,0.00021917,2]
[372509702,1752664244266,-460.0,0.00021917,2]
[372509704,1752664244275,-460.0,0.00021917,2]
[372509706,1752664244285,-460.0,0.00021917,2]
[372509708,1752664244295,-601.84,0.00021917,2]
[372509710,1752664244304,-532.75,0.00021917,2]
[372509712,1752664244314,-500.0,0.00021917,2]
[372509714,1752664244325,-460.0,0.00021917,2]
[372509716,1752664244336,-460.0,0.00021917,2]
[372509718,1752664244346,-2934.63,0.00021917,2]
[372509720,1752664244356,-479.67,0.00021917,2]
[372509722,1752664244366,-460.0,0.00021917,2]
[372509724,1752664244375,-460.59,0.00021917,2]
[372509726,1752664244385,-460.0,0.00021917,2]
[372509728,1752664244394,-460.0,0.00021917,2]
[372509730,1752664244405,-498.54,0.00021917,2]
[372509732,1752664244415,-460.0,0.00021917,2]
[372509734,1752664244425,-467.49,0.00021917,2]
[372509736,1752664244434,-504.18863023,0.00021917,2]
[372509738,1752664244444,-460.0,0.00021917,2]
[372509740,1752664244454,-2585.02,0.00021917,2]
[372509742,1752664244464,-378.35814924,0.00021917,2]
[372509744,1752664244473,-810.97,0.00021917,2]
[372509747,1752664244483,-460.0,0.00021917,2]
[372509749,1752664244494,-460.0,0.00021917,2]
[372509751,1752664244502,-460.0,0.00021917,2]
[372509752,1752664244512,-460.0,0.00021917,2]
[372509755,1752664244522,-460.0,0.00021917,2]
[372509757,1752664244533,-460.0,0.00021917,2]
[372509759,1752664244544,-741.22,0.00021917,2]
[372509761,1752664244557,-460.0,0.00021917,2]
[372509763,1752664244567,-1585.01,0.00021917,2]
[372509765,1752664244576,-460.0,0.00021917,2]
[372509767,1752664244587,-460.0,0.00021917,2]
[372509769,1752664244597,-460.0,0.00021917,2]
[372509771,1752664244606,-460.0,0.00021917,2]
[372509773,1752664244616,-460.0,0.00021917,2]
[372509775,1752664244627,-1372.93,0.00021917,2]
[372509777,1752664244637,-460.0,0.00021917,2]
[372509779,1752664244646,-296.53341431,0.00021917,2]
[372509781,1752664244656,-460.0,0.00021917,2]
[372509783,1752664244666,-460.0,0.00021917,2]
[372509785,1752664244676,-460.0,0.00021917,2]
[372509787,1752664244686,-460.0,0.00021917,2]
[372509789,1752664244695,-460.0,0.00021917,2]
[372509791,1752664244704,-460.0,0.00021917,2]
[372509793,1752664244714,-460.0,0.00021917,2]
[372509795,1752664244724,-500.0,0.00021917,2]
[372509797,1752664244735,-460.0,0.00021917,2]
[372509799,1752664244744,-500.0,0.00021917,2]
[372509801,1752664244756,-500.0,0.00021917,2]
[372509803,1752664244766,-500.0,0.00021917,2]
[372509805,1752664244776,-610.7330037,0.00021917,2]
[372509807,1752664244786,-1324.18,0.00021917,2]
[372509809,1752664244795,-460.0,0.00021917,2]
[372509811,1752664244805,-500.0,0.00021917,2]
[372509813,1752664244814,-460.0,0.00021917,2]
[372509815,1752664244824,-460.0,0.00021917,2]
[372509817,1752664244834,-915.95,0.00021917,2]
[372509819,1752664244843,-460.0,0.00021917,2]
[372509821,1752664244853,-460.0,0.00021917,2]
[372509823,1752664244863,-460.0,0.00021917,2]
[372509825,1752664244872,-413.56432167,0.00021917,2]
[372509832,1752664244922,-46.43567833,0.00021917,2]
[372509834,1752664244932,-1844.7,0.00021917,2]
[372509836,1752664244942,-1232.450379,0.00021917,2]
[372509838,1752664244952,-158.040475,0.00021917,2]
[372509840,1752664244961,-153.228136,0.00021917,2]
[372509842,1752664244971,-1164.45,0.00021917,2]
[372509844,1752664244980,-500.0,0.00021917,2]
[372509846,1752664244989,-460.0,0.00021917,2]
[372509848,1752664245000,-460.0,0.00021917,2]
[372509850,1752664245009,-460.0,0.00021917,2]
[372509852,1752664245018,-460.0,0.00021917,2]
[372509854,1752664245028,-460.0,0.00021917,2]
[372509856,1752664245037,-1287.096448,0.00021917,2]
[372509858,1752664245047,-11442.80858122,0.00021917,2]
[372509860,1752664245058,-460.0,0.00021917,2]
[372509862,1752664245068,-815.84,0.00021917,2]
[372509864,1752664245077,-1248.799124,0.00021917,2]
[372509866,1752664245088,-506.41,0.00021917,2]
[372509868,1752664245098,-460.0,0.00021917,2]
[372509870,1752664245107,-460.0,0.00021917,2]
[372509872,1752664245117,-460.0,0.00021917,2]
[372509874,1752664245127,-720.15,0.00021917,2]
[372509876,1752664245137,-460.0,0.00021917,2]
[372509878,1752664245147,-460.0,0.00021917,2]
[372509880,1752664245157,-460.0,0.00021917,2]
[372509882,1752664245167,-460.0,0.00021917,2]
[372509884,1752664245177,-460.0,0.00021917,2]
[372509886,1752664245186,-460.0,0.00021917,2]
[372509888,1752664245196,-460.0,0.00021917,2]
[372509890,1752664245205,-482.23,0.00021917,2]
[372509892,1752664245215,-460.0,0.00021917,2]
[372509894,1752664245225,-460.0,0.00021917,2]
[372509896,1752664245235,-950.61,0.00021917,2]
[372509898,1752664245245,-460.0,0.00021917,2]
[372509900,1752664245255,-226.72526474,0.00021917,2]
[372510455,1752664275082,1000.0,0.00030136,120]
[372510456,1752664291421,1000.0,0.00030136,120]
[372510458,1752664307122,158.54,0.00013699,2]
[372510459,1752664316331,784.0,0.0003013,120]
[372510460,1752664397445,10000.0,0.00030137,120]
[372510461,1752664421708,10000.0,0.00030137,120]
[372510462,1752664437542,10000.0,0.00030137,120]
[372510464,1752664505067,10000.0,0.00030137,120]
[372510465,1752664520926,10000.0,0.00030137,120]
[372510467,1752664588416,500.0,0.0003013,120]
[372510468,1752664599596,580.0,0.0003013,120]
[372510469,1752664616251,547.0,0.0003013,120]
[372510470,1752664622468,1000.0,0.0003013,120]
[372510473,1752664857236,460.0,0.00028767,120]
[372510476,1752665223753,1807.0,0.0003013,120]
[372510477,1752665224572,239.0,0.0003013,120]
[372510478,1752665226838,1044.0,0.0003013,120]
[372510516,1752665281183,316.0,0.0003013,120]
[372510517,1752665297913,1339.37203908,0.0001439,2]
[372510518,1752665298583,173.43,0.00029911,120]
[372510519,1752665322454,13343.54796092,0.000151,2]
[372510520,1752665322478,15000.0,0.000151,2]
[372510521,1752665322502,15000.0,0.000151,2]
[372510522,1752665322527,10340.51723726,0.000151,2]
[372510525,1752665325969,500.0,0.0003,120]
[372510526,1752665327880,445.1844244,0.00030136,120]
[372510530,1752665405553,160.09,0.00013699,2]
[372510541,1752665432142,-151.0,0.00018313,2]
[372510542,1752665432152,-517.0,0.00018561,2]
[372510543,1752665432161,-300.0,0.00018909,2]
[372510544,1752665432171,-1200.0,0.00018909,2]
[372510545,1752665432181,-8743.40573935,0.0001891,2]
[372510546,1752665432229,-2167.85808854,0.0001891,2]
[372510547,1752665432238,-348.65390107,0.0001901,7]
[372510548,1752665432248,-173.98,0.00019178,2]
[372510550,1752665432257,-14477.26137003,0.00019574,2]
[372510552,1752665432267,-4125.88,0.0001969,2]
[372510554,1752665432277,-528.53,0.0001969,2]
[372510556,1752665432287,-173.43,0.00019941,2]
[372510557,1752665432298,-150.0,0.00019948,4]
[372510558,1752665432307,-150.0,0.00019948,4]
[372510559,1752665432316,-150.00000001,0.00019948,4]
[372510560,1752665432326,-150.0,0.00019948,4]
[372510561,1752665432336,-474.66,0.00019949,2]
[372510562,1752665432346,-250.0,0.00019972,2]
[372510563,1752665432355,-4743.2,0.00020046,2]
[372510564,1752665432366,-512.23,0.0002011,2]
[372510565,1752665432376,-300.0,0.00020133,2]
[372510566,1752665432386,-250.0,0.00020133,2]
[372510567,1752665432402,-1100.0,0.00020159,2]
[372510568,1752665432411,-1000.0,0.00020159,2]
[372510569,1752665432426,-500.0,0.00020159,2]
[372510570,1752665432437,-286.14,0.00020383,2]
[372510571,1752665432447,-150.0,0.00020386,2]
[372510572,1752665432458,-455.89,0.00020387,2]
[372510573,1752665432469,-455.89,0.00020398,2]
[372510574,1752665432479,-455.89,0.00020409,2]
[372510575,1752665432489,-455.89,0.0002042,2]
[372510576,1752665432499,-272.0224845,0.00020429,7]
[372510577,1752665432509,-455.89,0.0002043,2]
[372510578,1752665432519,-1000.0,0.00020437,2]
[372510579,1752665432529,-455.89,0.00020441,2]
[372510580,1752665432538,-455.89,0.00020452,2]
[372510581,1752665432548,-455.89,0.00020463,2]
[372510582,1752665432557,-455.89,0.00020473,2]
[372510583,1752665432567,-455.89,0.00020484,2]
[372510584,1752665432576,-455.89,0.00020495,2]
[372510585,1752665432586,-455.89,0.00020505,2]
[372510586,1752665432595,-455.89,0.00020516,2]
[372510587,1752665432605,-455.89,0.00020527,2]
[372510588,1752665432616,-455.89,0.00020538,2]
[372510589,1752665432626,-408.63,0.0002054,2]
[372510590,1752665432636,-455.89,0.00020548,2]
[372510591,1752665432645,-167.26,0.00020555,2]
[372510592,1752665432655,-455.89,0.00020559,2]
[372510593,1752665432664,-455.89,0.0002057,2]
[372510594,1752665432674,-455.89,0.00020581,2]
[372510595,1752665432684,-455.89,0.00020591,2]
[372510596,1752665432693,-2873.31,0.00020602,2]
[372510597,1752665432709,-153.24669149,0.00020621,2]
[372510598,1752665432726,-8479.61951745,0.00020634,2]
[372510599,1752665432738,-2982.80795402,0.00020634,2]
[372510602,1752665437937,-6830.81780792,0.00020634,2]
[372510790,1752665440291,-1189.1,0.00020634,2]
[372511060,1752665443083,-4417.65472061,0.00020634,2]
[372511062,1752665443093,-320.0,0.00020713,2]
[372511064,1752665443105,-1390.79,0.00020746,2]
[372511066,1752665443114,-524.86,0.00020781,2]
[372511068,1752665443124,-2989.57,0.00020821,2]
[372511070,1752665443136,-2983.5592413,0.00020958,2]
[372511072,1752665443145,-527.0,0.00021,2]
[372511074,1752665443155,-107599.44991146,0.00021,8]
[372511076,1752665443165,-333.3,0.00021047,2]
[372511078,1752665443176,-187.5,0.00021055,2]
[372511080,1752665443186,-286.14,0.00021147,2]
[372511082,1752665443196,-1672.98059739,0.00021167,2]
[372511084,1752665443206,-207.4,0.00021167,2]
[372511086,1752665443216,-1100.0,0.00021255,2]
[372511088,1752665443226,-1000.0,0.00021255,2]
[372511090,1752665443236,-1057.88875268,0.00021364,2]
[372511092,1752665443244,-153.0,0.00021367,2]
[372511094,1752665443253,-300.0,0.000215,7]
[372511096,1752665443264,-600.0,0.000216,7]
[372511098,1752665443274,-1556.14580277,0.00021624,2]
[372511100,1752665443284,-900.0,0.000217,7]
[372511102,1752665443294,-1200.0,0.000218,7]
[372511104,1752665443303,-10001.11007728,0.000218,2]
[372511107,1752665443313,-1784.69918295,0.00021809,2]
[372511109,1752665443323,-1305.5619,0.0002181,2]
[372511111,1752665443333,-10146.48446609,0.00021816,2]
[372511113,1752665443343,-500.0,0.00021816,2]
[372511115,1752665443352,-168.55594675,0.00021816,2]
[372511117,1752665443361,-500.0,0.00021816,2]
[372511119,1752665443371,-500.0,0.00021816,2]
[372511121,1752665443381,-500.0,0.00021816,2]
[372511123,1752665443391,-500.0,0.00021816,2]
[372511125,1752665443400,-500.0,0.00021816,2]
[372511127,1752665443410,-500.0,0.00021816,2]
[372511129,1752665443419,-500.0,0.00021816,2]
[372511131,1752665443429,-500.0,0.00021816,2]
[372511133,1752665443439,-500.0,0.00021816,2]
[372511135,1752665443449,-500.0,0.00021816,2]
[372511137,1752665443459,-500.0,0.00021816,2]
[372511139,1752665443469,-500.0,0.00021816,2]
[372511141,1752665443479,-500.0,0.00021816,2]
[372511143,1752665443489,-500.0,0.00021816,2]
[372511145,1752665443499,-500.0,0.00021816,2]
[372511147,1752665443509,-500.0,0.00021816,2]
[372511149,1752665443519,-500.0,0.00021816,2]
[372511151,1752665443529,-500.0,0.00021816,2]
[372511153,1752665443539,-500.0,0.00021816,2]
[372511155,1752665443549,-500.0,0.00021816,2]
[372511157,1752665443559,-500.0,0.00021816,2]
[372511159,1752665443568,-500.0,0.00021816,2]
[372511161,1752665443579,-500.0,0.00021816,2]
[372511163,1752665443588,-500.0,0.00021816,2]
[372511166,1752665443598,-500.0,0.00021816,2]
[372511168,1752665443608,-500.0,0.00021816,2]
[372511170,1752665443618,-500.0,0.00021816,2]
[372511172,1752665443627,-500.0,0.00021816,2]
[372511174,1752665443637,-500.0,0.00021816,2]
[372511176,1752665443647,-500.0,0.00021816,2]
[372511177,1752665443656,-500.0,0.00021816,2]
[372511180,1752665443666,-500.0,0.00021816,2]
[372511182,1752665443675,-500.0,0.00021816,2]
[372511184,1752665443685,-500.0,0.00021816,2]
[372511186,1752665443695,-500.0,0.00021816,2]
[372511188,1752665443705,-500.0,0.00021816,2]
[372511190,1752665443715,-500.0,0.00021816,2]
[372511191,1752665443724,-500.0,0.00021816,2]
[372511193,1752665443734,-500.0,0.00021816,2]
[372511196,1752665443745,-500.0,0.00021816,2]
[372511198,1752665443755,-500.0,0.00021816,2]
[372511200,1752665443764,-500.0,0.00021816,2]
[372511202,1752665443774,-500.0,0.00021816,2]
[372511204,1752665443785,-500.0,0.00021816,2]
[372511206,1752665443795,-500.0,0.00021816,2]
[372511208,1752665443805,-500.0,0.00021816,2]
[372511210,1752665443815,-500.0,0.00021816,2]
[372511212,1752665443825,-500.0,0.00021816,2]
[372511214,1752665443835,-500.0,0.00021816,2]
[372511216,1752665443845,-500.0,0.00021816,2]
[372511218,1752665443855,-500.0,0.00021816,2]
[372511220,1752665443865,-500.0,0.00021816,2]
[372511222,1752665443876,-500.0,0.00021816,2]
[372511224,1752665443886,-500.0,0.00021816,2]
[372511226,1752665443895,-242.96229839,0.00021816,2]
[372511228,1752665443905,-500.0,0.00021816,2]
[372511230,1752665443914,-500.0,0.00021816,2]
[372511232,1752665443924,-500.0,0.00021816,2]
[372511234,1752665443933,-500.0,0.00021816,2]
[372511236,1752665443943,-500.0,0.00021816,2]
[372511238,1752665443952,-500.0,0.00021816,2]
[372511240,1752665443962,-500.0,0.00021816,2]
[372511242,1752665443971,-500.0,0.00021816,2]
[372511244,1752665443980,-500.0,0.00021816,2]
[372511246,1752665443990,-500.0,0.00021816,2]
[372511248,1752665444000,-151.60889327,0.00021816,2]
[372511250,1752665444009,-5000.0,0.00021817,2]
[372511252,1752665444018,-281.6548389,0.00021817,2]
[372511254,1752665444028,-524.86,0.0002182,2]
[372511256,1752665444038,-162.36785014,0.0002182,2]
[372511258,1752665444048,-1784.6991829,0.00021871,2]
[372511260,1752665444059,-281.65483886,0.00021878,2]
[372511262,1752665444070,-1500.0,0.000219,7]
[372511264,1752665444079,-1418.09,0.000219,2]
[372511266,1752665444089,-9250.78500688,0.00021908,2]
[372511269,1752665444099,-736.45421893,0.00021909,2]
[372511271,1752665444110,-2456.54610372,0.0002191,2]
[372511273,1752665444120,-83216.26593849,0.0002191,2]
[372511295,1752665444332,-101.31878309,0.0002191,2]
[372511775,1752665790376,288.89933406,0.0003,120]
[372511779,1752665913382,32775.17416216,0.00030137,120]
[372511781,1752665971426,2621.8189772,0.00030136,120]
[372511817,1752666078815,250.0,0.00015,2]
[372511836,1752666313029,10000.0,0.00030137,120]
[372511907,1752666571589,150.0,0.00017513,2]
[372511908,1752666581463,159.86,0.00013699,2]
[372511914,1752666632103,-173.98,0.00019178,2]
[372511915,1752666632113,-150.0,0.00019948,4]
[372511916,1752666632122,-150.0,0.00019948,4]
[372511917,1752666632132,-38.44428194,0.00020059,2]
[372511918,1752666632144,-149.05518395,0.00020059,2]
[372511919,1752666632155,-354.94481605,0.00020158,2]
[372511920,1752666632168,-845.05518395,0.00020158,2]
[372511921,1752666632178,-500.0,0.00020159,2]
[372511922,1752666632188,-352.94481605,0.00020159,2]
[372511923,1752666632274,-647.05518395,0.00020159,2]
[372511924,1752666632285,-1000.0,0.00020159,2]
[372511925,1752666632295,-517.0,0.00020165,2]
[372511926,1752666632305,-456.65,0.00020517,2]
[372511927,1752666632314,-300.0,0.00020642,2]
[372511928,1752666632324,-1290.39,0.00020644,2]
[372511929,1752666632333,-250.0,0.00020645,2]
[372511930,1752666632342,-409.79,0.00020753,2]
[372511931,1752666632352,-333.3,0.00020765,2]
[372511932,1752666632362,-727.62319428,0.00020815,2]
[372511933,1752666632374,-272.37680572,0.00020815,2]
[372511934,1752666632383,-314.91,0.00020834,2]
[372511935,1752666632393,-245.72,0.0002089,2]
[372511936,1752666632402,-714.16,0.00020931,2]
[372511937,1752666632412,-423.45,0.00020953,2]
[372511938,1752666632422,-166.12,0.00020963,2]
[372511940,1752666632433,-150.99,0.00020963,2]
[372511942,1752666632445,-723.46,0.00020963,2]
[372511944,1752666632454,-8345.15,0.00020977,2]
[372511945,1752666632463,-2561.48,0.00020977,2]
[372511946,1752666632473,-6765.97620745,0.00020977,2]
[372511947,1752666632485,-530.23571806,0.00020977,2]
[372511948,1752666632531,-2703.77807449,0.00020977,2]
[372511951,1752666632541,-527.0,0.00021,2]
[372511954,1752666632550,-1672.98059739,0.00021167,2]
[372511956,1752666632560,-207.4,0.00021167,2]
[372511958,1752666632569,-1000.0,0.00021255,2]
[372511960,1752666632578,-1000.0,0.00021255,2]
[372511962,1752666632588,-300.0,0.000215,7]
[372511964,1752666632597,-600.0,0.000216,7]
[372511966,1752666632607,-245.72,0.00021673,2]
[372511968,1752666632616,-900.0,0.000217,7]
[372511971,1752666632625,-187.49946588,0.00021716,2]
[372511974,1752666632635,-600.0,0.00021787,2]
[372511977,1752666632644,-160.0,0.00021787,2]
[372511980,1752666632653,-151.0,0.00021787,2]